bitfinex/quotes_BTCUSD_20250902
["timestamp","ask_amount","ask_price","bid_price","bid_amount"]
[1756822031436,0.39506,111080.0,111070.0,0.27198261]
[1756822031643,0.39506,111080.0,111070.0,0.18006662]
[1756822032270,0.01807652,111090.0,111070.0,0.18006662]
[1756822032488,0.24507072,111090.0,111080.0,0.17628]
[1756822032704,0.26656927,111090.0,111080.0,0.17628]
[1756822032916,0.26656927,111090.0,111080.0,0.35633041]
[1756822033133,0.26960927,111090.0,111080.0,0.35533041]
[1756822033347,0.18005041,111080.0,111070.0,0.18206662]
[1756822033557,0.23511041,111080.0,111070.0,0.35630662]
[1756822033783,0.59014693,111080.0,111060.0,0.24932283]
[1756822033987,0.05304,111070.0,111060.0,0.24946365]
[1756822034210,0.05506,111070.0,111060.0,0.24946365]
[1756822034436,0.05506,111070.0,111060.0,0.42570365]
[1756822034656,0.05,111070.0,111060.0,0.85158163]
[1756822034863,0.35603652,111080.0,111070.0,0.18006662]
[1756822034864,0.34,111080.0,111070.0,0.18006662]
[1756822035082,0.40807652,111090.0,111080.0,0.18005041]
[1756822035299,0.42957499,111090.0,111080.0,0.35629041]
[1756822035974,0.37755499,111090.0,111080.0,0.35629041]
[1756822036190,0.05,111100.0,111090.0,0.1800342]
[1756822036413,0.06947592,111100.0,111090.0,0.76706817]
[1756822036637,0.06947592,111100.0,111090.0,0.76606817]
[1756822036860,0.07453592,111100.0,111090.0,0.34019019]
[1756822037297,0.25455392,111100.0,111090.0,0.06924]
[1756822037509,1.05720947,111100.0,111090.0,0.24544]
[1756822037773,0.45131349,111100.0,111090.0,0.4244742]
[1756822037988,0.63133149,111100.0,111090.0,0.4244742]
[1756822038209,0.5700342,111090.0,111070.0,0.06924]
[1756822038414,0.24508693,111080.0,111070.0,0.06924]
[1756822038630,0.09444413,111080.0,111070.0,0.42550662]
[1756822039046,0.25014693,111080.0,111070.0,0.42550662]
[1756822039251,0.07009652,111080.0,111070.0,0.42550662]
[1756822039457,0.06807652,111080.0,111070.0,0.42550662]
[1756822039867,0.06503652,111080.0,111070.0,0.42550662]
[1756822040073,0.05,111080.0,111070.0,0.94330059]
[1756822040286,0.051,111080.0,111070.0,0.52042261]
[1756822040936,0.001,111080.0,111070.0,0.94630059]
[1756822042360,0.001,111080.0,111070.0,0.96723941]
[1756822042584,0.01807652,111120.0,111100.0,0.180018]
[1756822042804,0.07439875,111120.0,111110.0,0.3561618]
[1756822043023,0.07641875,111120.0,111110.0,0.3561618]
[1756822043680,0.41641875,111120.0,111110.0,0.3561618]
[1756822043894,0.41655994,111120.0,111110.0,0.3561618]
[1756822044115,0.40152342,111120.0,111110.0,0.44807779]
[1756822044332,0.39620119,111120.0,111110.0,0.45007779]
[1756822044776,0.34114119,111120.0,111110.0,0.87595577]
[1756822044991,0.00114119,111120.0,111110.0,0.87595577]
[1756822045210,0.00114119,111120.0,111110.0,0.88503611]
[1756822045460,0.00214119,111120.0,111110.0,0.27391779]
[1756822045687,0.00214119,111120.0,111110.0,0.45003779]
[1756822046158,0.00214119,111120.0,111110.0,0.88477842]
[1756822046376,0.00720119,111120.0,111110.0,0.09391599]
[1756822046596,0.57718679,111120.0,111110.0,0.1820018]
[1756822046809,0.41223771,111120.0,111110.0,0.3580818]
[1756822047285,0.59222331,111120.0,111110.0,0.1820018]
[1756822047495,0.59222331,111120.0,111110.0,0.17808]
[1756822048357,0.41223771,111120.0,111110.0,0.3580818]
[1756822048593,0.59222331,111120.0,111110.0,0.3580418]
[1756822049285,0.59854189,111120.0,111110.0,0.3580418]
[1756822049505,0.43797114,111120.0,111110.0,0.3580418]
[1756822049736,0.02155599,111120.0,111110.0,0.44995779]
[1756822049968,0.00214119,111120.0,111110.0,1.11297114]
[1756822050199,0.00214119,111120.0,111110.0,1.13390996]
[1756822050446,1e-08,111120.0,111110.0,1.50887344]
[1756822050685,1e-08,111120.0,111110.0,1.90887344]
[1756822051159,0.12354631,111150.0,111140.0,0.17995321]
[1756822051376,0.15478253,111150.0,111140.0,0.5171092]
[1756822052339,0.08123622,111150.0,111140.0,0.5171092]
[1756822052545,0.07692282,111150.0,111140.0,0.5171092]
[1756822052736,0.07490282,111150.0,111140.0,0.5171092]
[1756822052988,0.07186282,111150.0,111140.0,0.5171092]
[1756822053175,0.05247052,111150.0,111140.0,1.18012255]
[1756822053441,0.00247052,111150.0,111140.0,1.18012255]
[1756822053618,0.00347052,111150.0,111140.0,1.18012255]
[1756822054105,0.00347052,111150.0,111140.0,1.20106137]
[1756822054602,0.05670704,111180.0,111170.0,0.17990465]
[1756822054820,0.05856733,111180.0,111170.0,0.51698064]
[1756822055062,0.05856733,111180.0,111170.0,1.17999399]
[1756822055495,0.0829762,111180.0,111170.0,0.51694064]
[1756822055701,0.1136231,111180.0,111170.0,0.51694064]
[1756822055912,0.1136231,111180.0,111170.0,0.34102064]
[1756822056121,0.1136231,111180.0,111170.0,0.51694064]
[1756822056329,0.30224879,111180.0,111170.0,0.0692]
[1756822056539,0.30224879,111180.0,111160.0,0.0692]
[1756822056540,0.58494142,111170.0,111160.0,0.0692]
[1756822056754,0.63697929,111170.0,111160.0,0.0692]
[1756822056969,0.46011439,111170.0,111160.0,0.24508]
[1756822057178,0.64001904,111170.0,111160.0,0.42500083]
[1756822057390,0.64001852,111170.0,111160.0,0.42500083]
[1756822057601,0.64001852,111170.0,111160.0,0.0692]
[1756822057802,0.67237807,111170.0,111160.0,0.24508]
[1756822058009,0.67737807,111170.0,111160.0,0.24508]
[1756822058214,0.67737807,111170.0,111160.0,0.0692]
[1756822058215,1.34239142,111170.0,111160.0,0.0692]
[1756822058422,1.38615381,111170.0,111160.0,0.24508]
[1756822058638,0.24497354,111150.0,111140.0,0.0692]
[1756822058845,0.26434392,111150.0,111140.0,0.24508]
[1756822059055,0.26951392,111150.0,111140.0,0.42503321]
[1756822059262,0.26951392,111150.0,111140.0,0.24508]
[1756822059475,0.60951392,111150.0,111140.0,0.42503321]
[1756822059690,0.59014354,111150.0,111140.0,0.24504]
[1756822059901,0.65910354,111150.0,111140.0,0.24504]
[1756822060123,0.19500592,111130.0,111120.0,0.0692]
[1756822060347,0.19500592,111130.0,111120.0,0.24504]
[1756822060348,0.06503652,111130.0,111120.0,0.24504]
[1756822060561,0.07020652,111130.0,111120.0,0.4250256]
[1756822061289,0.25017592,111130.0,111120.0,0.24504]
[1756822061506,0.07020652,111130.0,111120.0,0.42749612]
[1756822061933,0.25017592,111130.0,111120.0,0.24851052]
[1756822062145,0.41020652,111130.0,111120.0,0.42849612]
[1756822062357,0.59017592,111130.0,111120.0,0.42849612]
[1756822062808,0.59017592,111130.0,111120.0,0.24851052]
[1756822063013,0.59017592,111130.0,111120.0,0.07267052]
[1756822063223,0.59017592,111130.0,111120.0,0.42845612]
[1756822063435,0.59017592,111130.0,111120.0,0.24847052]
[1756822063645,0.59017592,111130.0,111120.0,0.42845612]
[1756822063850,0.59017592,111130.0,111120.0,0.24847052]
[1756822064270,1.25318927,111130.0,111120.0,0.24843052]
[1756822064493,0.41020652,111130.0,111120.0,0.24843052]
[1756822064694,0.59017592,111130.0,111120.0,0.42841612]
[1756822065320,0.41020652,111130.0,111120.0,0.42841612]
[1756822065526,0.59017592,111130.0,111120.0,0.42841612]
[1756822065739,0.59017592,111130.0,111120.0,0.24843052]
[1756822065922,0.59017592,111130.0,111120.0,0.42841612]
[1756822066916,0.59017592,111130.0,111120.0,0.24843052]
[1756822067118,1.25318927,111130.0,111120.0,0.00347052]
[1756822067326,1.41406526,111130.0,111120.0,0.00022052]
[1756822067528,1.61072408,111130.0,111120.0,0.00022052]
[1756822067951,1.43500408,111130.0,111120.0,0.00022052]
[1756822068151,1.61072408,111130.0,111120.0,0.00022052]
[1756822068410,1.43500408,111130.0,111120.0,0.00022052]
[1756822068607,0.19503832,111110.0,111100.0,0.17572]
[1756822068814,1.00193766,111110.0,111100.0,0.17586119]
[1756822069016,1.00513766,111110.0,111100.0,0.17586119]
[1756822069217,0.34212431,111110.0,111100.0,0.17586119]
[1756822069353,0.25020832,111110.0,111100.0,0.17586119]
[1756822069554,0.25902887,111110.0,111100.0,0.17586119]
[1756822069949,0.07020652,111110.0,111100.0,0.35587919]
[1756822070225,0.06503652,111110.0,111100.0,0.35803919]
[1756822070758,0.06603652,111110.0,111100.0,0.35587919]
[1756822070968,0.59120832,111110.0,111100.0,0.17582119]
[1756822071182,1.25622167,111110.0,111100.0,0.17582119]
[1756822071616,0.41220652,111110.0,111100.0,0.35583919]
[1756822071823,0.59220832,111110.0,111100.0,0.35583919]
[1756822072023,0.59320832,111110.0,111100.0,0.35583919]
[1756822072226,0.59320832,111110.0,111100.0,0.17582119]
[1756822072436,0.59320832,111110.0,111100.0,0.35583919]
[1756822072657,1.25622167,111110.0,111100.0,0.17582119]
[1756822073511,1.25622167,111110.0,111100.0,0.17578119]
[1756822073979,1.25522167,111110.0,111100.0,0.17578119]
[1756822074613,1.25622167,111110.0,111100.0,0.17578119]
[1756822074830,1.34813766,111110.0,111100.0,0.17578119]
[1756822075680,0.41320652,111110.0,111100.0,0.35579919]
[1756822075915,0.06803652,111110.0,111100.0,0.35795919]
[1756822076126,0.06803652,111110.0,111100.0,0.36102919]
[1756822076350,0.06803652,111110.0,111100.0,0.35795919]
[1756822076599,0.06803652,111110.0,111100.0,0.38457984]
[1756822076999,0.06503652,111110.0,111100.0,0.38457984]
[1756822077239,0.06503652,111110.0,111100.0,0.47649583]
[1756822077240,0.05,111110.0,111100.0,0.47649583]
[1756822077462,0.06503652,111120.0,111110.0,0.1800018]
[1756822077677,0.40503652,111120.0,111110.0,0.2492018]
[1756822077927,0.40503652,111120.0,111110.0,0.2513618]
[1756822078131,0.06503652,111120.0,111110.0,0.2513618]
[1756822078987,0.06503652,111120.0,111110.0,0.2492018]
[1756822079211,0.06503652,111120.0,111110.0,0.4269218]
[1756822079433,0.01503652,111130.0,111120.0,0.1799856]
[1756822079623,0.06503652,111140.0,111130.0,0.1799694]
[1756822079896,0.01503652,111150.0,111140.0,0.17995321]
[1756822080080,0.06700652,111150.0,111140.0,0.35447321]
[1756822080501,0.41020652,111150.0,111140.0,0.35547321]
[1756822080712,0.40503652,111150.0,111140.0,0.35347321]
[1756822080924,0.59014354,111150.0,111140.0,0.35247321]
[1756822081131,0.59061406,111150.0,111140.0,0.35247321]
[1756822081334,0.06503652,111140.0,111130.0,0.24915488]
[1756822081597,0.05,111140.0,111130.0,0.42683488]
[1756822081784,0.40650704,111150.0,111140.0,0.17995321]
[1756822082005,0.40850704,111150.0,111140.0,0.18211321]
[1756822082228,0.40750704,111150.0,111140.0,0.18211321]
[1756822082461,0.59261414,111150.0,111130.0,0.0692]
[1756822082682,1.25120308,111140.0,111130.0,0.0692]
[1756822082903,0.41020652,111140.0,111130.0,0.4246494]
[1756822083117,0.40503652,111140.0,111130.0,0.4246494]
[1756822083592,0.40503652,111140.0,111130.0,0.4278094]
[1756822084281,0.24498973,111140.0,111130.0,0.4278094]
[1756822084488,0.25015973,111140.0,111130.0,0.2501694]
[1756822084712,0.24695973,111140.0,111130.0,0.0702]
[1756822084931,0.24498973,111140.0,111130.0,0.4256094]
[1756822085150,0.58695973,111140.0,111130.0,0.0702]
[1756822085379,0.59015973,111140.0,111130.0,0.0702]
[1756822085621,1.25317308,111140.0,111130.0,0.2456]
[1756822085832,0.59015973,111140.0,111130.0,0.2456]
[1756822086268,1.25317308,111140.0,111130.0,0.2456]
[1756822086693,1.25317308,111140.0,111130.0,0.0702]
[1756822086951,1.25317308,111140.0,111130.0,0.2456]
[1756822087198,1.25317308,111140.0,111130.0,0.0702]
[1756822087431,1.34508907,111140.0,111130.0,0.17636]
[1756822088291,0.68207572,111140.0,111130.0,0.001]
[1756822088513,1.52690388,111140.0,111130.0,0.001]
[1756822089397,1.53322526,111140.0,111130.0,0.001]
[1756822089842,1.55264015,111140.0,111130.0,0.001]
[1756822090054,1.24806787,111100.0,111090.0,0.0692]
[1756822090275,0.40503652,111100.0,111090.0,0.2956342]
[1756822090694,0.58505452,111100.0,111090.0,0.2986642]
[1756822090908,1.24806787,111100.0,111090.0,0.1156]
[1756822091119,1.24806787,111100.0,111090.0,0.2956342]
[1756822091353,1.24806787,111100.0,111090.0,0.11574119]
[1756822091569,1.25340787,111100.0,111090.0,0.24566119]
[1756822091775,1.25340787,111100.0,111090.0,0.42469539]
[1756822092036,1.06804987,111100.0,111090.0,0.42781539]
[1756822092247,1.25017787,111100.0,111090.0,0.42569539]
[1756822092475,0.39,111100.0,111090.0,0.43084539]
[1756822092703,0.05,111100.0,111090.0,0.43084539]
[1756822092928,0.06503652,111100.0,111090.0,0.43084539]
[1756822093400,0.06503652,111100.0,111090.0,0.07749119]
[1756822093614,0.06503652,111100.0,111090.0,0.42977539]
[1756822094057,0.35503652,111110.0,111100.0,0.180018]
[1756822094289,0.40503652,111110.0,111100.0,0.185168]
[1756822094516,0.40503652,111110.0,111100.0,0.182138]
[1756822094737,0.58503832,111110.0,111100.0,0.182138]
[1756822094952,1.25016167,111110.0,111100.0,0.355258]
[1756822095370,1.07015987,111110.0,111100.0,0.355258]
[1756822095584,0.40503652,111110.0,111100.0,0.357378]
[1756822096011,0.40503652,111120.0,111110.0,0.17998722]
[1756822096232,0.05,111110.0,111100.0,0.180018]
[1756822096450,0.05,111110.0,111100.0,0.357378]
[1756822096664,0.71301335,111110.0,111100.0,0.357378]
[1756822096882,0.05,111110.0,111100.0,0.360408]
[1756822097128,0.05,111110.0,111100.0,0.357378]
[1756822097557,0.05,111110.0,111100.0,0.45232399]
[1756822097714,1.06804987,111120.0,111110.0,0.1800018]
[1756822097923,1.01804987,111120.0,111110.0,0.1821218]
[1756822098132,0.40503652,111120.0,111110.0,0.1821218]
[1756822098578,0.39,111120.0,111110.0,0.19102192]
[1756822098781,0.05,111130.0,111120.0,0.1799856]
[1756822099090,0.09209651,111140.0,111130.0,0.1799694]
[1756822099318,0.40503652,111140.0,111130.0,0.1820894]
[1756822099519,0.06503652,111150.0,111140.0,0.17995321]
[1756822099743,0.91009689,111150.0,111140.0,0.35511321]
[1756822099967,0.91332689,111150.0,111140.0,0.35311321]
[1756822100352,0.91379741,111150.0,111140.0,0.17316]
[1756822100563,1.25379741,111150.0,111140.0,0.17116]
[1756822100770,0.06503652,111130.0,111120.0,0.24915903]
[1756822100994,0.73338987,111130.0,111120.0,0.42427903]
[1756822101214,0.91335927,111130.0,111120.0,0.42427903]
[1756822101427,1.07338987,111130.0,111120.0,0.42427903]
[1756822101635,1.25335927,111130.0,111120.0,0.0692]
[1756822101835,1.07015987,111130.0,111120.0,0.4243056]
[1756822102254,1.25012927,111130.0,111120.0,0.4243056]
[1756822102460,1.25335927,111130.0,111120.0,0.4243056]
[1756822102669,0.40503652,111130.0,111120.0,0.4243056]
[1756822102893,0.40503652,111130.0,111120.0,0.4264256]
[1756822103094,0.58711592,111130.0,111120.0,0.4253056]
[1756822103307,0.40503652,111130.0,111120.0,0.4274256]
[1756822103736,1.07015987,111130.0,111120.0,0.4253056]
[1756822103949,1.06804987,111130.0,111120.0,0.4274256]
[1756822104163,0.39,111130.0,111120.0,0.51934159]
[1756822104598,0.39,111130.0,111120.0,0.52034159]
[1756822106401,0.34,111130.0,111120.0,0.52034159]
[1756822106686,0.05,111130.0,111120.0,0.52034159]
[1756822106893,0.07966752,111140.0,111130.0,0.1799694]
[1756822107121,0.26173073,111140.0,111130.0,0.1799694]
[1756822107356,1.26474408,111140.0,111130.0,0.3549294]
[1756822107579,0.60173073,111140.0,111130.0,0.3549294]
[1756822108028,0.24500592,111130.0,111120.0,0.0702]
[1756822108257,0.58817292,111130.0,111120.0,0.0702]
[1756822108499,1.25329627,111130.0,111120.0,0.24512]
[1756822108706,0.39211,111130.0,111120.0,0.4251056]
[1756822108911,0.59028292,111130.0,111120.0,0.24412]
[1756822109332,1.34521226,111130.0,111120.0,0.001]
[1756822109555,1.19760317,111130.0,111120.0,0.001]
[1756822109767,1.43676188,111130.0,111120.0,0.001]
[1756822109978,1.43676188,111130.0,111120.0,0.002]
[1756822109979,1.39954675,111130.0,111120.0,0.002]
[1756822110187,1.39954675,111130.0,111120.0,0.001]
[1756822110622,1.82564219,111130.0,111120.0,0.002]
[1756822110842,0.00899928,111120.0,111090.0,0.0692]
[1756822111056,0.00899928,111120.0,111070.0,0.00125092]
[1756822111057,0.24502393,111080.0,111070.0,0.07045092]
[1756822111269,0.24502393,111080.0,111070.0,0.42535754]
[1756822111710,0.06497352,111080.0,111070.0,0.42535754]
[1756822111921,0.06497352,111080.0,111070.0,0.43665009]
[1756822112135,0.06497352,111080.0,111070.0,0.42747754]
[1756822112615,0.06497352,111080.0,111070.0,0.42961873]
[1756822112833,0.06497352,111080.0,111070.0,0.43364873]
[1756822113036,0.06497352,111080.0,111070.0,0.43064873]
[1756822113250,0.05,111080.0,111070.0,0.53157141]
[1756822113461,0.40497352,111090.0,111080.0,0.18005041]
[1756822113670,0.40497352,111090.0,111080.0,0.18217041]
[1756822114336,0.05,111090.0,111080.0,0.18520041]
[1756822114545,0.05,111090.0,111080.0,0.2771164]
[1756822114756,0.05,111090.0,111080.0,0.2740864]
[1756822115199,0.05,111090.0,111080.0,0.2771164]
[1756822115609,0.05,111090.0,111080.0,0.2791164]
[1756822116261,0.05,111090.0,111080.0,0.70521184]
[1756822116680,0.39,111100.0,111090.0,0.1800342]
[1756822116888,0.39,111100.0,111090.0,0.44671019]
[1756822117104,0.05,111110.0,111100.0,0.18000351]
[1756822117310,0.05,111110.0,111100.0,0.3432395]
[1756822117530,0.05,111110.0,111100.0,0.3462695]
[1756822117944,0.01497352,111120.0,111110.0,0.1800018]
[1756822117945,0.40497352,111120.0,111110.0,0.1800018]
[1756822118176,0.40497352,111120.0,111110.0,0.3568418]
[1756822118596,0.39,111120.0,111110.0,0.44875779]
[1756822118834,0.39,111120.0,111110.0,0.45178779]
[1756822119043,0.05,111120.0,111110.0,0.45960241]
[1756822119251,0.05,111130.0,111120.0,0.1799856]
[1756822119467,0.41007352,111130.0,111110.0,0.1790018]
[1756822119680,0.05305,111120.0,111110.0,0.27091779]
[1756822122821,0.41007352,111130.0,111120.0,0.3545856]
[1756822123464,0.40497352,111130.0,111120.0,0.3565956]
[1756822123685,0.40497352,111130.0,111120.0,0.3585956]
[1756822124133,1.01613836,111130.0,111120.0,0.002]
[1756822124399,1.01613836,111130.0,111120.0,0.17656]
[1756822124618,1.01613836,111130.0,111120.0,0.3565456]
[1756822124842,0.41007352,111130.0,111120.0,0.3565456]
[1756822125062,0.40702352,111130.0,111120.0,0.3585556]
[1756822125309,0.41007352,111130.0,111120.0,0.3560456]
[1756822125764,0.39,111130.0,111120.0,0.3580556]
[1756822125995,0.064631,111140.0,111130.0,0.1799694]
[1756822126217,0.064631,111140.0,111130.0,0.2511794]
[1756822126655,0.014631,111140.0,111130.0,0.77231083]
[1756822126882,0.014631,111140.0,111130.0,1.11231083]
[1756822126883,1e-08,111140.0,111130.0,1.11231083]
[1756822127109,1e-08,111140.0,111130.0,1.13324965]
[1756822127330,1e-08,111140.0,111130.0,1.28163421]
[1756822127543,1e-08,111140.0,111130.0,1.70772965]
[1756822128401,1e-08,111140.0,111130.0,1.68675083]
[1756822128865,1e-08,111140.0,111130.0,1.68975083]
[1756822129080,1e-08,111140.0,111130.0,1.35575083]
[1756822129962,1e-08,111140.0,111130.0,0.75521539]
[1756822130182,1e-08,111140.0,111130.0,0.92961539]
[1756822130424,1e-08,111140.0,111130.0,1.22167416]
[1756822130850,1e-08,111140.0,111130.0,1.39603416]
[1756822131994,1e-08,111140.0,111130.0,0.79245872]
[1756822132219,1e-08,111140.0,111130.0,1.39287416]
[1756822132877,0.00510001,111140.0,111130.0,0.39044872]
[1756822133058,0.05205001,111140.0,111130.0,0.56472872]
[1756822133746,0.05000001,111140.0,111130.0,0.56673872]
[1756822133958,1e-08,111140.0,111130.0,0.99595416]
[1756822134824,1e-08,111140.0,111130.0,1.34789298]
[1756822135275,1e-08,111140.0,111130.0,1.35089298]
[1756822135767,1e-08,111140.0,111130.0,1.34889298]
[1756822135981,1e-08,111140.0,111130.0,1.35489298]
[1756822136209,1e-08,111140.0,111130.0,0.75351754]
[1756822136429,1e-08,111140.0,111130.0,1.35381298]
[1756822136858,1e-08,111140.0,111130.0,1.75681298]
[1756822137706,1e-08,111140.0,111130.0,1.85171298]
[1756822137934,1e-08,111140.0,111130.0,1.75681298]
[1756822139316,1e-08,111140.0,111130.0,1.79183946]
[1756822139730,1e-08,111140.0,111130.0,2.05135946]
[1756822140481,1e-08,111170.0,111160.0,0.17992083]
[1756822140725,0.12659631,111210.0,111200.0,0.17985611]
[1756822140948,0.12864631,111210.0,111200.0,0.94110754]
[1756822141421,0.05325,111220.0,111210.0,0.17983994]
[1756822141670,0.0502,111220.0,111210.0,0.69785137]
[1756822141909,0.0006711,111220.0,111210.0,0.91922137]
[1756822142419,0.0006711,111220.0,111210.0,1.09010137]
[1756822142698,0.0006711,111220.0,111210.0,1.09322137]
[1756822142929,0.0006711,111220.0,111210.0,0.91610137]
[1756822143147,0.0006711,111220.0,111210.0,0.49000593]
[1756822143365,0.0006711,111220.0,111210.0,1.09006137]
[1756822143582,0.0006711,111220.0,111210.0,1.09306137]
[1756822143809,0.0006711,111220.0,111210.0,1.09506137]
[1756822144516,0.0057711,111220.0,111210.0,0.67587085]
[1756822144710,0.0057711,111220.0,111210.0,1.10196629]
[1756822144957,0.0006711,111220.0,111210.0,1.09896629]
[1756822145140,0.0006711,111220.0,111210.0,1.09897629]
[1756822145614,0.0006711,111220.0,111210.0,1.10197629]
[1756822145836,0.0006711,111220.0,111210.0,1.10497629]
[1756822146054,0.0006711,111220.0,111210.0,1.10292629]
[1756822146265,0.0006711,111220.0,111210.0,1.10493629]
[1756822146491,0.0006711,111220.0,111210.0,1.10805629]
[1756822146958,0.0006711,111220.0,111210.0,1.10493629]
[1756822147425,0.0006711,111220.0,111210.0,0.93105629]
[1756822147640,0.0006711,111220.0,111210.0,1.10485629]
[1756822149246,0.0002,111250.0,111220.0,0.17980939]
[1756822149470,0.0002,111250.0,111240.0,0.17979144]
[1756822149681,0.05351126,111250.0,111240.0,0.69780287]
[1756822149891,0.05568126,111250.0,111240.0,0.69780287]
[1756822150324,0.05251126,111250.0,111240.0,0.27170743]
[1756822150533,0.05568126,111250.0,111240.0,0.44538743]
[1756822150742,0.00568126,111250.0,111240.0,0.87148287]
[1756822150963,0.05568126,111250.0,111240.0,0.87148287]
[1756822152251,0.05768126,111250.0,111240.0,0.87148287]
[1756822152468,0.07696958,111250.0,111240.0,0.44538743]
[1756822152696,0.07496946,111250.0,111240.0,0.44538743]
[1756822152906,0.07696946,111250.0,111240.0,0.44538743]
[1756822153126,0.05768126,111250.0,111240.0,0.44534743]
[1756822153379,0.05568126,111250.0,111240.0,0.44534743]
[1756822153588,0.05668126,111250.0,111240.0,0.44534743]
[1756822154006,0.05568126,111250.0,111240.0,0.44530743]
[1756822155858,0.05568126,111250.0,111240.0,0.17979144]
[1756822155859,0.07065478,111250.0,111240.0,0.17979144]
[1756822156074,0.47416478,111250.0,111240.0,0.35335144]
[1756822157422,0.41165478,111250.0,111240.0,0.44526743]
[1756822158291,0.41161478,111250.0,111240.0,0.27170743]
[1756822158541,0.41161478,111250.0,111240.0,0.44518743]
[1756822158973,0.41161478,111250.0,111230.0,0.28946254]
[1756822158974,0.06497352,111240.0,111230.0,0.24895323]
[1756822159183,0.06497352,111240.0,111230.0,0.42243323]
[1756822159405,0.07031352,111240.0,111230.0,0.42243323]
[1756822159578,0.49640896,111240.0,111230.0,0.42243323]
[1756822159800,1.0162004,111240.0,111230.0,0.06916]
[1756822160001,0.06497352,111220.0,111210.0,0.06912]
[1756822160160,1.07874273,111220.0,111210.0,0.06912]
[1756822160350,1.07874273,111220.0,111210.0,0.42239994]
[1756822160580,0.89891896,111220.0,111210.0,0.42239994]
[1756822160794,1.07874273,111220.0,111210.0,0.42239994]
[1756822161442,0.89891896,111220.0,111210.0,0.42239994]
[1756822161665,0.41031352,111220.0,111210.0,0.42239994]
[1756822162091,0.83640896,111220.0,111210.0,0.42239994]
[1756822162328,0.41031352,111220.0,111210.0,0.42239994]
[1756822162529,0.83640896,111220.0,111210.0,0.42239994]
[1756822162733,0.41031352,111220.0,111210.0,0.42239994]
[1756822162955,0.06714352,111220.0,111210.0,0.42239994]
[1756822163162,0.07331352,111220.0,111210.0,0.42239994]
[1756822163638,0.49640896,111220.0,111210.0,0.42239994]
[1756822163849,0.07031352,111220.0,111210.0,0.42239994]
[1756822164061,0.07131352,111220.0,111210.0,0.42239994]
[1756822164291,0.49740896,111220.0,111210.0,0.42239994]
[1756822164501,0.60591503,111240.0,111230.0,0.05]
[1756822164724,0.17982377,111220.0,111210.0,0.11912]
[1756822164942,0.60591921,111220.0,111210.0,0.34248]
[1756822165154,0.60808921,111220.0,111210.0,0.34248]
[1756822165364,0.00217,111220.0,111210.0,0.52231994]
[1756822165582,0.42826544,111220.0,111210.0,0.52231994]
[1756822166016,0.00217,111220.0,111210.0,0.52427994]
[1756822166244,0.42609544,111230.0,111220.0,0.27982377]
[1756822166456,0.52118143,111240.0,111230.0,0.1798076]
[1756822166662,0.86335143,111240.0,111230.0,0.3531276]
[1756822167077,0.77243544,111240.0,111230.0,0.3531276]
[1756822167287,0.42926544,111240.0,111230.0,0.4531276]
[1756822167497,0.001,111240.0,111230.0,0.4550876]
[1756822167724,0.42609544,111250.0,111240.0,0.22979144]
[1756822167933,0.42826544,111250.0,111240.0,0.34895144]
[1756822168176,0.48750487,111250.0,111240.0,0.34795144]
[1756822168384,0.49067487,111250.0,111240.0,0.34395144]
[1756822168604,0.67045015,111250.0,111240.0,0.51723144]
[1756822168852,0.49067487,111250.0,111240.0,0.51723144]
[1756822169492,0.49079603,111250.0,111240.0,0.51723144]
[1756822169712,0.49079603,111250.0,111240.0,0.34395144]
[1756822169931,0.67057131,111250.0,111240.0,0.51719144]
[1756822170276,0.67057131,111250.0,111240.0,0.16416]
[1756822170496,0.67057131,111250.0,111240.0,0.51419144]
[1756822170497,0.66652749,111250.0,111240.0,0.51419144]
[1756822170947,0.00217,111250.0,111240.0,0.51419144]
[1756822171193,0.34317,111270.0,111260.0,0.17974824]
[1756822171416,1.0985704,111270.0,111260.0,0.34998824]
[1756822171642,1.00665441,111270.0,111260.0,0.34998824]
[1756822171858,1.18639737,111270.0,111260.0,0.34998824]
[1756822172091,1.00665441,111270.0,111260.0,0.35299912]
[1756822172308,1.01561327,111270.0,111260.0,0.40299912]
[1756822172528,1.28727222,111270.0,111250.0,0.092]
[1756822172753,0.67561327,111270.0,111260.0,0.40295912]
[1756822172981,1.19535623,111270.0,111260.0,0.40295912]
[1756822173207,1.01561327,111270.0,111260.0,0.40295912]
[1756822173431,1.19535623,111270.0,111260.0,0.2232]
[1756822173942,1.19535623,111270.0,111240.0,0.24895085]
[1756822173943,0.17977528,111250.0,111240.0,0.16116]
[1756822174191,0.1798076,111230.0,111220.0,0.11112]
[1756822174432,0.51982377,111220.0,111200.0,0.23466631]
[1756822174662,1.18636743,111210.0,111200.0,0.11112]
[1756822174885,1.00652749,111210.0,111200.0,0.51409611]
[1756822175118,1.00335749,111210.0,111200.0,0.51409611]
[1756822175594,1.00335749,111210.0,111200.0,0.51456721]
[1756822175819,0.34217,111210.0,111200.0,0.51456721]
[1756822176072,0.34,111210.0,111200.0,0.51652721]
[1756822176298,1.00652749,111210.0,111200.0,0.51456721]
[1756822176557,0.34,111210.0,111200.0,0.51456721]
[1756822176804,1.09310348,111220.0,111210.0,0.22183994]
[1756822177041,1.00335749,111220.0,111210.0,0.27183994]
[1756822177256,0.66118749,111230.0,111220.0,0.22180912]
[1756822177490,0.34,111230.0,111220.0,0.44488912]
[1756822177987,0.34217,111230.0,111220.0,0.44488912]
[1756822178216,0.34,111230.0,111220.0,0.44488912]
[1756822178449,0.34,111230.0,111220.0,0.44684912]
[1756822178673,0.34,111230.0,111220.0,0.44990912]
[1756822178901,0.34,111230.0,111220.0,0.45290912]
[1756822179134,0.18294528,111250.0,111240.0,0.17979144]
[1756822179354,0.27696127,111250.0,111240.0,0.35283144]
[1756822179593,0.61696127,111250.0,111240.0,0.17304]
[1756822180280,0.3421,111250.0,111240.0,0.40283144]
[1756822180489,0.34,111250.0,111240.0,0.44483144]
[1756822180692,0.3421,111250.0,111240.0,0.44483144]
[1756822181111,0.34,111250.0,111240.0,0.44483144]
[1756822181325,0.3421,111250.0,111240.0,0.44483144]
[1756822181762,0.34,111250.0,111240.0,0.44483144]
[1756822182170,0.342,111250.0,111240.0,0.44483144]
[1756822182375,0.342,111250.0,111240.0,0.44698144]
[1756822182587,0.002,111250.0,111240.0,0.45007144]
[1756822183460,0.002,111250.0,111240.0,1.11125893]
[1756822183681,0.01196578,111280.0,111270.0,0.22174296]
[1756822183936,0.52906589,111280.0,111270.0,0.46386296]
[1756822184222,0.55054686,111280.0,111270.0,0.46386296]
[1756822185074,0.55154686,111280.0,111270.0,0.28408]
[1756822185278,0.55154686,111280.0,111270.0,0.46382296]
[1756822185510,0.55154686,111280.0,111270.0,0.28408]
[1756822185724,0.55154686,111280.0,111270.0,0.11116]
[1756822185922,0.55154686,111280.0,111270.0,0.28404]